[Event "CCT Chessable Masters Play-In 2025"]
[Site "Online"]
[Date "2025.02.17"]
[Round "1.59"]
[White "Hakobyan, Aram"]
[Black "Vetoshko, Volodymyr"]
[Result "1-0"]
[ECO "D30"]
[WhiteElo "2635"]
[BlackElo "2529"]
[PlyCount "157"]
[EventDate "2025.02.13"]
[EventType "swiss"]
[EventCountry "NET"]
[TimeControl "600"]
[WhiteClock "0:00:51"]
[BlackClock "0:00:02"]

1. d4 {[%emt 0:00:01]} d5 {[%emt 0:00:02]} 2. c4 {[%emt 0:00:00]} e6 {[%emt 0:00:01]} 3. Nf3 {[%emt 0:00:01]} a6 {[%emt 0:00:05]} 4. e3 {[%emt 0:00:02]} Nf6 {[%emt 0:00:02]} 5. Nc3 {[%emt 0:00:01]} b6 {[%emt 0:00:01]} 6. cxd5 {[%emt 0:00:05]} exd5 {[%emt 0:00:00]} 7. Bd3 {[%emt 0:00:01]} Bb7 {[%emt 0:00:02]} 8. Qa4+ {[%emt 0:00:02]} Nbd7 {[%emt 0:00:27]} 9. O-O {[%emt 0:00:11]} Bd6 {[%emt 0:00:02]} 10. Qc2 {[%emt 0:00:22]} O-O {[%emt 0:00:05]} 11. b3 {[%emt 0:00:05]} Qe7 {[%emt 0:00:14]} 12. Bb2 {[%emt 0:00:00]} c5 {[%emt 0:00:14]} 13. Rad1 {[%emt 0:00:15]} Rac8 {[%emt 0:00:03]} 14. Rfe1 {[%emt 0:00:10]} g6 {[%emt 0:00:20]} 15. Qe2 {[%emt 0:00:05]} Ra8 {[%emt 0:01:09]} 16. e4 {[%emt 0:00:26]} cxd4 {[%emt 0:00:26]} 17. Nxd5 {[%emt 0:00:02]} Nxd5 {[%emt 0:00:15]} 18. exd5 {[%emt 0:00:01]} Qxe2 {[%emt 0:00:02]} 19. Bxe2 {[%emt 0:00:14]} Bb4 {[%emt 0:00:11]} 20. Rf1 {[%emt 0:00:01]} Bc3 {[%emt 0:00:11]} 21. Bxc3 {[%emt 0:01:01]} dxc3 {[%emt 0:00:01]} 22. Rd3 {[%emt 0:00:00]} Rfe8 {[%emt 0:00:18]} 23. Nd4 {[%emt 0:00:02]} c2 {[%emt 0:00:24]} 24. Rd2 {[%emt 0:00:16]} Bxd5 {[%emt 0:00:35]} 25. Nxc2 {[%emt 0:00:03]} Nf6 {[%emt 0:00:02]} 26. Ne3 {[%emt 0:00:04]} Be6 {[%emt 0:00:21]} 27. Rc1 {[%emt 0:00:10]} a5 {[%emt 0:00:27]} 28. Rd6 {[%emt 0:00:02]} Rab8 {[%emt 0:00:24]} 29. Bf3 {[%emt 0:00:19]} Red8 {[%emt 0:00:05]} 30. Rcd1 {[%emt 0:00:12]} Rxd6 {[%emt 0:00:03]} 31. Rxd6 {[%emt 0:00:00]} Kf8 {[%emt 0:00:02]} 32. g3 {[%emt 0:00:09]} Ke7 {[%emt 0:00:01]} 33. Rc6 {[%emt 0:00:01]} Bd7 {[%emt 0:00:06]} 34. Rc7 {[%emt 0:00:04]} Kd6 {[%emt 0:00:24]} 35. Rc1 {[%emt 0:00:01]} Be6 {[%emt 0:00:09]} 36. Rc6+ {[%emt 0:00:09]} Kd7 {[%emt 0:00:10]} 37. h4 {[%emt 0:00:00]} Nd5 {[%emt 0:00:09]} 38. Bxd5 {[%emt 0:00:10]} Bxd5 {[%emt 0:00:01]} 39. Rc3 {[%emt 0:00:03]} Be6 {[%emt 0:00:01]} 40. Kf1 {[%emt 0:00:07]} b5 {[%emt 0:00:06]} 41. Ke2 {[%emt 0:00:35]} b4 {[%emt 0:00:01]} 42. Rd3+ {[%emt 0:00:19]} Kc6 {[%emt 0:00:02]} 43. Kd2 {[%emt 0:00:00]} a4 {[%emt 0:00:04]} 44. Kc2 {[%emt 0:00:30]} axb3+ {[%emt 0:00:01]} 45. axb3 {[%emt 0:00:00]} Kc5 {[%emt 0:00:01]} 46. Kb2 {[%emt 0:00:07]} h5 {[%emt 0:00:11]} 47. Rd2 {[%emt 0:00:01]} Ra8 {[%emt 0:00:05]} 48. Nc2 {[%emt 0:00:03]} Ra7 {[%emt 0:00:09]} 49. Rd4 {[%emt 0:00:09]} Rd7 {[%emt 0:00:17]} 50. Rxb4 {[%emt 0:00:38]} Rd2 {[%emt 0:00:02]} 51. Rf4 {[%emt 0:00:00]} Bf5 {[%emt 0:00:06]} 52. Rc4+ {[%emt 0:00:01]} Kd5 {[%emt 0:00:06]} 53. f4 {[%emt 0:00:08]} Rg2 {[%emt 0:00:02]} 54. Rc3 {[%emt 0:00:05]} Bxc2 {[%emt 0:00:05]} 55. Rxc2 {[%emt 0:00:02]} Rxg3 {[%emt 0:00:01]} 56. b4 {[%emt 0:00:01]} Rg4 {[%emt 0:00:04]} 57. b5 {[%emt 0:00:13]} Rxf4 {[%emt 0:00:01]} 58. Kb3 {[%emt 0:00:02]} Rf1 {[%emt 0:00:16]} 59. Kb4 {[%emt 0:00:03]} Rb1+ {[%emt 0:00:09]} 60. Ka5 {[%emt 0:00:02]} Ke5 {[%emt 0:00:09]} 61. b6 {[%emt 0:00:02]} Kf5 {[%emt 0:00:05]} 62. Rc4 {[%emt 0:00:16]} f6 {[%emt 0:00:02]} 63. Rb4 {[%emt 0:00:05]} Ra1+ {[%emt 0:00:01]} 64. Kb5 {[%emt 0:00:00]} Ra8 {[%emt 0:00:00]} 65. Kc6 {[%emt 0:00:04]} g5 {[%emt 0:00:02]} 66. Kc7 {[%emt 0:00:04]} g4 {[%emt 0:00:01]} 67. Rb5+ {[%emt 0:00:23]} Kf4 {[%emt 0:00:01]} 68. Rxh5 {[%emt 0:00:01]} g3 {[%emt 0:00:00]} 69. Rh7 {[%emt 0:00:01]} f5 {[%emt 0:00:01]} 70. h5 {[%emt 0:00:04]} Kf3 {[%emt 0:00:01]} 71. b7 {[%emt 0:00:02]} Rf8 {[%emt 0:00:01]} 72. Rg7 {[%emt 0:00:04]} g2 {[%emt 0:00:02]} 73. b8=Q {[%emt 0:00:01]} Rxb8 {[%emt 0:00:00]} 74. Kxb8 {[%emt 0:00:01]} Kf2 {[%emt 0:00:02]} 75. h6 {[%emt 0:00:00]} f4 {[%emt 0:00:01]} 76. h7 {[%emt 0:00:01]} g1=Q {[%emt 0:00:00]} 77. Rxg1 {[%emt 0:00:01]} Kxg1 {[%emt 0:00:01]} 78. h8=Q {[%emt 0:00:01]} f3 {[%emt 0:00:04]} 79. Qg7+ {[%emt 0:00:01]} 1-0

[Event "CCT Chessable Masters Play-In 2025"]
[Site "Online"]
[Date "2025.02.17"]
[Round "1.60"]
[White "Pranav Anand"]
[Black "Pranav, V."]
[Result "1/2-1/2"]
[ECO "C55"]
[WhiteElo "2538"]
[BlackElo "2615"]
[PlyCount "138"]
[EventDate "2025.02.13"]
[EventType "swiss"]
[EventCountry "NET"]
[TimeControl "600"]
[WhiteClock "0:01:36"]
[BlackClock "0:01:35"]

1. e4 {[%emt 0:00:01]} e5 {[%emt 0:00:03]} 2. Nf3 {[%emt 0:00:01]} d6 {[%emt 0:00:02]} 3. Bc4 {[%emt 0:00:00]} Be7 {[%emt 0:00:03]} 4. d3 {[%emt 0:00:04]} Nf6 {[%emt 0:00:05]} 5. O-O {[%emt 0:00:03]} O-O {[%emt 0:00:01]} 6. Re1 {[%emt 0:00:03]} Nc6 {[%emt 0:00:04]} 7. a4 {[%emt 0:00:04]} Be6 {[%emt 0:00:02]} 8. a5 {[%emt 0:00:10]} b6 {[%emt 0:00:02]} 9. a6 {[%emt 0:00:16]} Bxc4 {[%emt 0:00:13]} 10. dxc4 {[%emt 0:00:00]} Nb8 {[%emt 0:00:01]} 11. Qd3 {[%emt 0:00:45]} Nbd7 {[%emt 0:00:05]} 12. Be3 {[%emt 0:00:01]} Nc5 {[%emt 0:00:28]} 13. Bxc5 {[%emt 0:00:02]} bxc5 {[%emt 0:00:01]} 14. Nc3 {[%emt 0:00:03]} c6 {[%emt 0:00:10]} 15. Nd2 {[%emt 0:00:07]} Nh5 {[%emt 0:00:08]} 16. g3 {[%emt 0:00:08]} g6 {[%emt 0:00:03]} 17. Nb3 {[%emt 0:00:34]} Qc8 {[%emt 0:00:13]} 18. Kg2 {[%emt 0:00:09]} Rb8 {[%emt 0:00:03]} 19. Qe2 {[%emt 0:00:27]} Rb6 {[%emt 0:00:07]} 20. Ra4 {[%emt 0:00:02]} Rxa6 {[%emt 0:00:04]} 21. Rea1 {[%emt 0:00:01]} Rxa4 {[%emt 0:00:05]} 22. Rxa4 {[%emt 0:00:00]} Qd7 {[%emt 0:00:09]} 23. Qd1 {[%emt 0:00:03]} Qb7 {[%emt 0:00:14]} 24. Qa1 {[%emt 0:00:02]} Ra8 {[%emt 0:00:02]} 25. Ra6 {[%emt 0:00:02]} Bd8 {[%emt 0:00:07]} 26. Nc1 {[%emt 0:00:11]} Ng7 {[%emt 0:00:07]} 27. Nd3 {[%emt 0:00:04]} Ne6 {[%emt 0:00:03]} 28. Ne2 {[%emt 0:00:04]} Bb6 {[%emt 0:00:04]} 29. b3 {[%emt 0:00:15]} Re8 {[%emt 0:00:04]} 30. Ra2 {[%emt 0:00:08]} Ng5 {[%emt 0:00:24]} 31. f3 {[%emt 0:00:08]} Qd7 {[%emt 0:00:02]} 32. Nf2 {[%emt 0:00:01]} f5 {[%emt 0:00:05]} 33. h4 {[%emt 0:00:01]} Ne6 {[%emt 0:00:02]} 34. Qc1 {[%emt 0:00:06]} Rf8 {[%emt 0:00:04]} 35. Qd1 {[%emt 0:00:27]} Qf7 {[%emt 0:00:20]} 36. exf5 {[%emt 0:00:03]} Qxf5 {[%emt 0:00:03]} 37. Qd3 {[%emt 0:00:01]} d5 {[%emt 0:00:41]} 38. cxd5 {[%emt 0:00:20]} cxd5 {[%emt 0:00:31]} 39. Qxd5 {[%emt 0:00:00]} Kg7 {[%emt 0:00:10]} 40. Qe4 {[%emt 0:00:12]} Rd8 {[%emt 0:00:03]} 41. Nd3 {[%emt 0:00:15]} Qxe4 {[%emt 0:01:07]} 42. fxe4 {[%emt 0:00:00]} Nd4 {[%emt 0:00:01]} 43. Nxd4 {[%emt 0:00:21]} Rxd4 {[%emt 0:00:01]} 44. Nxe5 {[%emt 0:00:08]} Rxe4 {[%emt 0:00:03]} 45. Nc4 {[%emt 0:00:01]} Re6 {[%emt 0:00:05]} 46. Kf3 {[%emt 0:00:08]} h5 {[%emt 0:00:01]} 47. Ra1 {[%emt 0:00:02]} Kf6 {[%emt 0:00:02]} 48. Rd1 {[%emt 0:00:01]} Ke7 {[%emt 0:00:03]} 49. Rd5 {[%emt 0:00:01]} Rf6+ {[%emt 0:00:02]} 50. Kg2 {[%emt 0:00:08]} Re6 {[%emt 0:00:01]} 51. Re5 {[%emt 0:00:07]} Rxe5 {[%emt 0:00:01]} 52. Nxe5 {[%emt 0:00:00]} Kf6 {[%emt 0:00:01]} 53. Nc4 {[%emt 0:00:02]} Kf5 {[%emt 0:00:01]} 54. Kf3 {[%emt 0:00:00]} Bc7 {[%emt 0:00:00]} 55. Ne3+ {[%emt 0:00:02]} Ke6 {[%emt 0:00:02]} 56. g4 {[%emt 0:00:02]} Bd8 {[%emt 0:00:04]} 57. Ng2 {[%emt 0:00:04]} Kd6 {[%emt 0:00:34]} 58. gxh5 {[%emt 0:00:58]} gxh5 {[%emt 0:00:00]} 59. Ke4 {[%emt 0:00:00]} c4 {[%emt 0:00:38]} 60. Kd4 {[%emt 0:00:41]} cxb3 {[%emt 0:00:04]} 61. cxb3 {[%emt 0:00:00]} Bf6+ {[%emt 0:00:00]} 62. Ke4 {[%emt 0:00:01]} Kc5 {[%emt 0:00:02]} 63. Kd3 {[%emt 0:00:01]} Kb4 {[%emt 0:00:08]} 64. Kc2 {[%emt 0:00:02]} Kc5 {[%emt 0:00:01]} 65. Kd3 {[%emt 0:00:06]} Kb4 {[%emt 0:00:02]} 66. Kc2 {[%emt 0:00:01]} a5 {[%emt 0:00:02]} 67. Nf4 {[%emt 0:00:02]} Bxh4 {[%emt 0:00:00]} 68. Nxh5 {[%emt 0:00:01]} a4 {[%emt 0:00:01]} 69. bxa4 {[%emt 0:00:00]} Kxa4 {[%emt 0:00:00]} 1/2-1/2

[Event "CCT Chessable Masters Play-In 2025"]
[Site "Online"]
[Date "2025.02.17"]
[Round "1.61"]
[White "Iturrizaga Bonelli, Eduardo"]
[Black "Volokitin, Andrei"]
[Result "0-1"]
[ECO "A11"]
[WhiteElo "2577"]
[BlackElo "2643"]
[PlyCount "110"]
[EventDate "2025.02.13"]
[EventType "swiss"]
[EventCountry "NET"]
[TimeControl "600"]
[BlackClock "0:02:18"]

1. c4 {[%emt 0:00:17]} Nf6 {[%emt 0:00:04]} 2. g3 {[%emt 0:00:02]} c6 {[%emt 0:00:02]} 3. Bg2 {[%emt 0:00:06]} d5 {[%emt 0:00:02]} 4. Qc2 {[%emt 0:00:18]} e5 {[%emt 0:00:05]} 5. Nf3 {[%emt 0:00:06]} e4 {[%emt 0:00:12]} 6. Nd4 {[%emt 0:00:20]} dxc4 {[%emt 0:00:18]} 7. e3 {[%emt 0:00:04]} c5 {[%emt 0:00:07]} 8. Nb5 {[%emt 0:00:22]} Nc6 {[%emt 0:00:41]} 9. O-O {[%emt 0:00:04]} a6 {[%emt 0:00:10]} 10. N5c3 {[%emt 0:00:02]} Nb4 {[%emt 0:00:10]} 11. Qd1 {[%emt 0:00:00]} Bg4 {[%emt 0:00:04]} 12. f3 {[%emt 0:01:09]} exf3 {[%emt 0:00:02]} 13. Bxf3 {[%emt 0:00:01]} Bxf3 {[%emt 0:00:02]} 14. Rxf3 {[%emt 0:00:00]} Be7 {[%emt 0:00:07]} 15. a4 {[%emt 0:00:05]} h5 {[%emt 0:01:21]} 16. h4 {[%emt 0:00:17]} Nd3 {[%emt 0:00:21]} 17. Na3 {[%emt 0:00:06]} Ne5 {[%emt 0:00:02]} 18. Rf4 {[%emt 0:00:03]} Qd6 {[%emt 0:00:19]} 19. Qf1 {[%emt 0:00:07]} O-O {[%emt 0:00:13]} 20. Nxc4 {[%emt 0:00:17]} Nxc4 {[%emt 0:00:02]} 21. Qxc4 {[%emt 0:00:00]} Rad8 {[%emt 0:00:32]} 22. a5 {[%emt 0:00:44]} Ng4 {[%emt 0:00:02]} 23. Qe4 {[%emt 0:00:39]} Qd7 {[%emt 0:00:10]} 24. Qf5 {[%emt 0:00:33]} g6 {[%emt 0:00:13]} 25. Qxd7 {[%emt 0:00:01]} Rxd7 {[%emt 0:00:01]} 26. Kg2 {[%emt 0:00:34]} Ne5 {[%emt 0:00:10]} 27. d4 {[%emt 0:00:55]} Nd3 {[%emt 0:00:01]} 28. Re4 {[%emt 0:00:03]} Bf6 {[%emt 0:00:02]} 29. Ne2 {[%emt 0:00:53]} Rc8 {[%emt 0:00:07]} 30. Nf4 {[%emt 0:00:10]} Nxf4+ {[%emt 0:00:16]} 31. Rxf4 {[%emt 0:00:01]} Bg7 {[%emt 0:00:02]} 32. Rf2 {[%emt 0:00:09]} cxd4 {[%emt 0:00:02]} 33. exd4 {[%emt 0:00:00]} Bxd4 {[%emt 0:00:05]} 34. Re2 {[%emt 0:00:03]} Rd5 {[%emt 0:00:06]} 35. Bf4 {[%emt 0:00:10]} Rb5 {[%emt 0:00:02]} 36. Rd1 {[%emt 0:00:04]} Rxb2 {[%emt 0:00:04]} 37. Rxb2 {[%emt 0:00:02]} Bxb2 {[%emt 0:00:01]} 38. Rd7 {[%emt 0:00:01]} Bc3 {[%emt 0:00:05]} 39. Bc7 {[%emt 0:00:12]} Re8 {[%emt 0:00:07]} 40. Bb6 {[%emt 0:00:07]} Re5 {[%emt 0:00:28]} 41. Rxb7 {[%emt 0:00:02]} Rb5 {[%emt 0:00:02]} 42. Ra7 {[%emt 0:00:10]} Bxa5 {[%emt 0:00:06]} 43. Ra8+ {[%emt 0:00:03]} Kh7 {[%emt 0:00:04]} 44. Bd4 {[%emt 0:00:00]} g5 {[%emt 0:00:01]} 45. Rxa6 {[%emt 0:00:18]} g4 {[%emt 0:00:08]} 46. Ra8 {[%emt 0:00:04]} Rd5 {[%emt 0:00:02]} 47. Rh8+ {[%emt 0:00:04]} Kg6 {[%emt 0:00:02]} 48. Be3 {[%emt 0:00:03]} Bc7 {[%emt 0:00:06]} 49. Rh6+ {[%emt 0:00:01]} Kg7 {[%emt 0:00:01]} 50. Rc6 {[%emt 0:00:00]} Be5 {[%emt 0:00:02]} 51. Bh6+ {[%emt 0:00:01]} Kh7 {[%emt 0:00:02]} 52. Be3 {[%emt 0:00:02]} Rd3 {[%emt 0:00:01]} 53. Bf2 {[%emt 0:00:01]} Rd2 {[%emt 0:00:02]} 54. Kg1 {[%emt 0:00:03]} Kg7 {[%emt 0:00:01]} 55. Rc5 f6 {[%emt 0:00:02]} 0-1

[Event "CCT Chessable Masters Play-In 2025"]
[Site "Online"]
[Date "2025.02.17"]
[Round "1.62"]
[White "Kourkoulos-Arditis, Stamatis"]
[Black "Alekseev, Evgeny"]
[Result "0-1"]
[ECO "A04"]
[WhiteElo "2580"]
[BlackElo "2505"]
[PlyCount "130"]
[EventDate "2025.02.13"]
[EventType "swiss"]
[EventCountry "NET"]
[TimeControl "600"]
[BlackClock "0:00:17"]

1. Nf3 {[%emt 0:00:02]} c5 {[%emt 0:00:08]} 2. b3 {[%emt 0:00:01]} Nc6 {[%emt 0:00:03]} 3. Bb2 {[%emt 0:00:01]} d6 {[%emt 0:00:02]} 4. e3 {[%emt 0:00:07]} e5 {[%emt 0:00:10]} 5. c4 {[%emt 0:00:32]} g6 {[%emt 0:00:03]} 6. d4 {[%emt 0:00:06]} exd4 {[%emt 0:00:06]} 7. exd4 {[%emt 0:00:02]} Bg7 {[%emt 0:00:01]} 8. Qd2 {[%emt 0:00:24]} Nf6 {[%emt 0:00:26]} 9. d5 {[%emt 0:00:07]} Ne7 {[%emt 0:00:45]} 10. Nc3 {[%emt 0:00:05]} O-O {[%emt 0:00:04]} 11. h3 {[%emt 0:00:04]} Nf5 {[%emt 0:00:28]} 12. Be2 {[%emt 0:00:02]} Re8 {[%emt 0:00:27]} 13. O-O {[%emt 0:00:02]} Bd7 {[%emt 0:00:07]} 14. Rae1 {[%emt 0:00:16]} Ne4 {[%emt 0:00:11]} 15. Nxe4 {[%emt 0:00:02]} Rxe4 {[%emt 0:00:00]} 16. Bd3 {[%emt 0:00:15]} Rxe1 {[%emt 0:00:08]} 17. Rxe1 {[%emt 0:00:00]} Nh4 {[%emt 0:00:17]} 18. Nh2 {[%emt 0:00:57]} Bxb2 {[%emt 0:00:20]} 19. Qxb2 {[%emt 0:00:01]} Qg5 {[%emt 0:00:09]} 20. g3 {[%emt 0:01:55]} Bxh3 {[%emt 0:00:03]} 21. Re4 {[%emt 0:00:12]} Nf5 {[%emt 0:00:10]} 22. Nf3 {[%emt 0:00:23]} Qh5 {[%emt 0:00:01]} 23. Rf4 {[%emt 0:00:36]} Re8 {[%emt 0:00:09]} 24. Qf6 {[%emt 0:00:34]} Bg4 {[%emt 0:00:06]} 25. Nh2 {[%emt 0:00:55]} Bh3 {[%emt 0:01:06]} 26. g4 {[%emt 0:00:27]} Qh6 {[%emt 0:00:33]} 27. Rxf5 {[%emt 0:00:48]} Qc1+ {[%emt 0:00:04]} 28. Nf1 {[%emt 0:00:01]} gxf5 {[%emt 0:00:04]} 29. Qxf5 {[%emt 0:00:01]} Qh6 {[%emt 0:00:13]} 30. Ne3 {[%emt 0:00:08]} Qh4 {[%emt 0:01:14]} 31. Qf4 {[%emt 0:00:05]} Rxe3 {[%emt 0:00:13]} 32. Qxe3 {[%emt 0:00:07]} Qxg4+ {[%emt 0:00:04]} 33. Qg3 {[%emt 0:00:00]} Qxg3+ {[%emt 0:00:03]} 34. fxg3 {[%emt 0:00:00]} Kg7 {[%emt 0:00:03]} 35. Kf2 {[%emt 0:00:01]} Kf6 {[%emt 0:00:23]} 36. Bxh7 {[%emt 0:00:05]} Ke5 {[%emt 0:00:17]} 37. Ke3 {[%emt 0:00:03]} Bd7 {[%emt 0:00:04]} 38. Bd3 {[%emt 0:00:01]} a6 {[%emt 0:00:04]} 39. Be2 {[%emt 0:00:05]} b5 {[%emt 0:00:04]} 40. Bd3 {[%emt 0:00:03]} b4 {[%emt 0:00:02]} 41. Be2 {[%emt 0:00:01]} Bf5 {[%emt 0:00:01]} 42. Bh5 {[%emt 0:00:05]} f6 {[%emt 0:00:04]} 43. Bf3 {[%emt 0:00:02]} Bb1 {[%emt 0:00:01]} 44. Kd2 {[%emt 0:00:00]} Kd4 {[%emt 0:00:02]} 45. Bg4 {[%emt 0:00:02]} a5 {[%emt 0:00:08]} 46. Bd7 {[%emt 0:00:02]} Ke4 {[%emt 0:00:04]} 47. Kc1 {[%emt 0:00:01]} Bd3 {[%emt 0:00:07]} 48. Kd2 {[%emt 0:00:00]} Kd4 {[%emt 0:00:02]} 49. Be8 {[%emt 0:00:00]} Bb1 {[%emt 0:00:02]} 50. Kc1 {[%emt 0:00:01]} Bf5 {[%emt 0:00:01]} 51. Kd2 {[%emt 0:00:01]} Ke4 {[%emt 0:00:01]} 52. Ke2 {[%emt 0:00:00]} Bg4+ {[%emt 0:00:01]} 53. Kf2 {[%emt 0:00:01]} Kd4 {[%emt 0:00:01]} 54. Ke1 {[%emt 0:00:01]} Kc3 {[%emt 0:00:00]} 55. Bg6 {[%emt 0:00:00]} Kb2 {[%emt 0:00:01]} 56. Kd2 {[%emt 0:00:00]} Bd7 {[%emt 0:00:02]} 57. Bc2 {[%emt 0:00:00]} Kxa2 {[%emt 0:00:03]} 58. Kc1 {[%emt 0:00:00]} Ka3 {[%emt 0:00:01]} 59. Kb1 {[%emt 0:00:01]} a4 {[%emt 0:00:00]} 60. bxa4 {[%emt 0:00:01]} Bxa4 {[%emt 0:00:01]} 61. Bd3 {[%emt 0:00:00]} Kb3 {[%emt 0:00:01]} 62. Bc2+ {[%emt 0:00:01]} Ka3 {[%emt 0:00:01]} 63. Bd3 {[%emt 0:00:00]} b3 {[%emt 0:00:01]} 64. Be2 {[%emt 0:00:01]} b2 {[%emt 0:00:01]} 65. g4 Bb3 {[%emt 0:00:01]} 0-1

[Event "CCT Chessable Masters Play-In 2025"]
[Site "Online"]
[Date "2025.02.17"]
[Round "1.63"]
[White "Shimanov, Aleksandr"]
[Black "Matinian, Nikita"]
[Result "0-1"]
[ECO "A49"]
[WhiteElo "2593"]
[BlackElo "2415"]
[PlyCount "152"]
[EventDate "2025.02.13"]
[EventType "swiss"]
[EventCountry "NET"]
[TimeControl "600"]
[BlackClock "0:00:13"]

1. Nf3 {[%emt 0:00:09]} Nf6 {[%emt 0:00:02]} 2. b3 {[%emt 0:00:01]} g6 {[%emt 0:00:02]} 3. Bb2 {[%emt 0:00:02]} Bg7 {[%emt 0:00:01]} 4. g3 {[%emt 0:00:04]} d6 {[%emt 0:00:01]} 5. d4 {[%emt 0:00:03]} b5 {[%emt 0:00:01]} 6. Na3 {[%emt 0:00:05]} b4 {[%emt 0:01:21]} 7. Nc4 {[%emt 0:00:02]} a5 {[%emt 0:00:06]} 8. a3 {[%emt 0:00:47]} Bb7 {[%emt 0:00:09]} 9. Bg2 {[%emt 0:00:02]} O-O {[%emt 0:00:01]} 10. O-O {[%emt 0:00:08]} Nbd7 {[%emt 0:01:12]} 11. axb4 {[%emt 0:01:30]} axb4 {[%emt 0:00:00]} 12. Qd2 {[%emt 0:00:02]} c5 {[%emt 0:00:06]} 13. dxc5 {[%emt 0:01:20]} dxc5 {[%emt 0:00:00]} 14. Rad1 {[%emt 0:00:02]} Qc7 {[%emt 0:00:12]} 15. Nfe5 {[%emt 0:00:10]} Bxg2 {[%emt 0:00:08]} 16. Kxg2 {[%emt 0:00:00]} Nxe5 {[%emt 0:00:07]} 17. Bxe5 {[%emt 0:00:02]} Qc6+ {[%emt 0:00:13]} 18. f3 {[%emt 0:00:01]} h5 {[%emt 0:01:35]} 19. h3 {[%emt 0:00:32]} Ne4 {[%emt 0:00:36]} 20. Qe3 {[%emt 0:00:11]} Nc3 {[%emt 0:00:09]} 21. Bxc3 {[%emt 0:00:03]} Bxc3 {[%emt 0:00:01]} 22. g4 {[%emt 0:00:12]} hxg4 {[%emt 0:00:03]} 23. hxg4 {[%emt 0:00:01]} Ra2 {[%emt 0:00:17]} 24. Rc1 {[%emt 0:00:23]} Bd4 {[%emt 0:00:12]} 25. Qh6 {[%emt 0:00:05]} Qe6 {[%emt 0:00:11]} 26. e4 {[%emt 0:00:04]} Rd8 {[%emt 0:00:09]} 27. Rfd1 {[%emt 0:00:06]} Qf6 {[%emt 0:00:11]} 28. Rd2 {[%emt 0:00:10]} e5 {[%emt 0:00:21]} 29. Rh1 {[%emt 0:00:15]} Qg7 {[%emt 0:00:48]} 30. Qh4 {[%emt 0:00:19]} f6 {[%emt 0:00:35]} 31. Kg3 {[%emt 0:00:06]} Kf7 {[%emt 0:00:02]} 32. Qh7 {[%emt 0:00:10]} Qxh7 {[%emt 0:00:09]} 33. Rxh7+ {[%emt 0:00:00]} Ke6 {[%emt 0:00:01]} 34. Rh1 {[%emt 0:00:43]} Rd7 {[%emt 0:00:04]} 35. Rh6 {[%emt 0:00:08]} Be3 {[%emt 0:00:02]} 36. Rxd7 {[%emt 0:00:07]} Bxh6 {[%emt 0:00:01]} 37. Rc7 {[%emt 0:00:15]} Rxc2 {[%emt 0:00:02]} 38. f4 {[%emt 0:00:26]} Bxf4+ {[%emt 0:00:01]} 39. Kf3 {[%emt 0:00:01]} Rc3+ {[%emt 0:00:02]} 40. Ke2 {[%emt 0:00:00]} Rxb3 {[%emt 0:00:00]} 41. Rc6+ {[%emt 0:00:01]} Ke7 {[%emt 0:00:02]} 42. Rxc5 {[%emt 0:00:00]} Rc3 {[%emt 0:00:03]} 43. Rc7+ {[%emt 0:00:11]} Kd8 {[%emt 0:00:01]} 44. Rc6 {[%emt 0:00:01]} b3 {[%emt 0:00:04]} 45. Rb6 {[%emt 0:00:39]} Rxc4 {[%emt 0:00:01]} 46. Rxb3 {[%emt 0:00:00]} Rxe4+ {[%emt 0:00:01]} 47. Kf2 {[%emt 0:00:01]} Rd4 {[%emt 0:00:02]} 48. Rb6 {[%emt 0:00:01]} Ke7 {[%emt 0:00:00]} 49. Rb7+ {[%emt 0:00:01]} Rd7 {[%emt 0:00:01]} 50. Rb6 {[%emt 0:00:00]} Rd6 {[%emt 0:00:01]} 51. Rb7+ {[%emt 0:00:01]} Ke6 {[%emt 0:00:01]} 52. Rg7 {[%emt 0:00:00]} g5 {[%emt 0:00:00]} 53. Kf3 {[%emt 0:00:01]} Rd3+ {[%emt 0:00:01]} 54. Ke2 {[%emt 0:00:00]} Re3+ {[%emt 0:00:01]} 55. Kf2 {[%emt 0:00:00]} e4 {[%emt 0:00:00]} 56. Rg8 {[%emt 0:00:01]} Rf3+ {[%emt 0:00:01]} 57. Ke2 {[%emt 0:00:01]} Rg3 {[%emt 0:00:02]} 58. Re8+ {[%emt 0:00:01]} Kd5 {[%emt 0:00:00]} 59. Rd8+ {[%emt 0:00:00]} Bd6 {[%emt 0:00:01]} 60. Re8 {[%emt 0:00:01]} Rxg4 {[%emt 0:00:01]} 61. Ke3 {[%emt 0:00:00]} Rf4 {[%emt 0:00:01]} 62. Ra8 {[%emt 0:00:01]} Rf3+ {[%emt 0:00:00]} 63. Ke2 {[%emt 0:00:01]} g4 {[%emt 0:00:00]} 64. Ra5+ {[%emt 0:00:01]} Bc5 {[%emt 0:00:01]} 65. Ra8 {[%emt 0:00:02]} g3 {[%emt 0:00:01]} 66. Rg8 {[%emt 0:00:00]} g2 {[%emt 0:00:01]} 67. Rxg2 {[%emt 0:00:02]} Rf2+ {[%emt 0:00:01]} 68. Rxf2 {[%emt 0:00:00]} Bxf2 {[%emt 0:00:00]} 69. Kxf2 {[%emt 0:00:00]} Kd4 {[%emt 0:00:00]} 70. Kg3 {[%emt 0:00:01]} f5 {[%emt 0:00:01]} 71. Kf4 {[%emt 0:00:00]} e3 {[%emt 0:00:00]} 72. Kf3 {[%emt 0:00:00]} Kd3 {[%emt 0:00:00]} 73. Kf4 {[%emt 0:00:00]} e2 {[%emt 0:00:01]} 74. Kxf5 {[%emt 0:00:01]} e1=Q {[%emt 0:00:00]} 75. Kf4 {[%emt 0:00:00]} Qe4+ {[%emt 0:00:01]} 76. Kg5 Qf3 {[%emt 0:00:01]} 0-1

[Event "CCT Chessable Masters Play-In 2025"]
[Site "Online"]
[Date "2025.02.17"]
[Round "1.64"]
[White "Nigmatov, Ortik"]
[Black "Antipov, Mikhail Al."]
[Result "0-1"]
[ECO "B36"]
[WhiteElo "2505"]
[BlackElo "2571"]
[PlyCount "70"]
[EventDate "2025.02.13"]
[EventType "swiss"]
[EventCountry "NET"]
[TimeControl "600"]
[WhiteClock "0:04:17"]
[BlackClock "0:07:43"]

1. e4 {[%emt 0:00:13]} c5 {[%emt 0:00:06]} 2. Nf3 {[%emt 0:00:09]} Nc6 {[%emt 0:00:04]} 3. d4 {[%emt 0:00:02]} cxd4 {[%emt 0:00:00]} 4. Nxd4 {[%emt 0:00:01]} g6 {[%emt 0:00:04]} 5. c4 {[%emt 0:00:06]} Nf6 {[%emt 0:00:01]} 6. Nc3 {[%emt 0:00:01]} d6 {[%emt 0:00:00]} 7. Be2 {[%emt 0:00:05]} Nxd4 {[%emt 0:00:01]} 8. Qxd4 {[%emt 0:00:01]} Bg7 {[%emt 0:00:00]} 9. Be3 {[%emt 0:00:01]} O-O {[%emt 0:00:01]} 10. Qd2 {[%emt 0:00:01]} a5 {[%emt 0:00:01]} 11. O-O {[%emt 0:00:01]} a4 {[%emt 0:00:02]} 12. Rfc1 {[%emt 0:00:29]} Qa5 {[%emt 0:00:13]} 13. Rab1 {[%emt 0:00:05]} Be6 {[%emt 0:00:04]} 14. f3 {[%emt 0:00:06]} Rfc8 {[%emt 0:00:02]} 15. b4 {[%emt 0:00:03]} axb3 {[%emt 0:00:01]} 16. axb3 {[%emt 0:00:01]} Qb4 {[%emt 0:00:00]} 17. Na4 {[%emt 0:01:06]} Qxd2 {[%emt 0:00:05]} 18. Bxd2 {[%emt 0:00:00]} Nd7 {[%emt 0:00:00]} 19. Be3 {[%emt 0:00:57]} f5 {[%emt 0:00:12]} 20. Bd3 {[%emt 0:00:14]} Ne5 {[%emt 0:00:03]} 21. Bc2 {[%emt 0:00:06]} Rc6 {[%emt 0:00:13]} 22. Kf2 {[%emt 0:00:07]} Rac8 {[%emt 0:00:15]} 23. Nb6 {[%emt 0:00:03]} f4 {[%emt 0:00:01]} 24. Nxc8 {[%emt 0:00:24]} fxe3+ {[%emt 0:00:02]} 25. Kxe3 {[%emt 0:00:00]} Rxc8 {[%emt 0:00:01]} 26. h3 {[%emt 0:00:09]} Nc6 {[%emt 0:00:04]} 27. Bd3 {[%emt 0:00:11]} Bd4+ {[%emt 0:00:12]} 28. Ke2 {[%emt 0:00:02]} Nb4 {[%emt 0:00:01]} 29. Rd1 {[%emt 0:00:14]} Ra8 {[%emt 0:00:02]} 30. Rbc1 {[%emt 0:00:02]} Ra3 {[%emt 0:00:03]} 31. Rb1 {[%emt 0:00:02]} g5 {[%emt 0:00:04]} 32. Kf1 {[%emt 0:00:17]} Ra2 {[%emt 0:00:08]} 33. Be2 {[%emt 0:00:03]} Nc2 {[%emt 0:00:08]} 34. Rd2 {[%emt 0:00:18]} Ne3+ {[%emt 0:00:02]} 35. Ke1 {[%emt 0:00:03]} Bc3 {[%emt 0:00:01]} 0-1